Cogmind - Beta 13 @@@ ROGUE MODE // 2024.04.15 @ 09:49:04 Player: m1m1c Result: Destroyed by H-55 Commando with Gauss Rifle Performance ------------- Evolutions (2) 1000 Regions Visited (4) 800 Robots Destroyed (37) 185 Value Destroyed (779) 779 Prototype IDs (0) 0 Alien Tech Used (0) 0 Bonus (78) 78 TOTAL SCORE: 2842 Bonus ------- Follower Combat Kills 78 Cogmind --------- Core Integrity 0/550 Matter 300/300 Energy 100/100 System Corruption 0% Temperature Cool (0) Movement Core (200) Ox3 Location -8/Materials Parts ------- > --- POWER (1) -------- (None) > --- PROPULSION (4) --- (None) > --- UTILITY (4) ------ Medium Storage Unit Hacking Suite > --- WEAPON (2) ------- (None) > --- INVENTORY (10) --- Hacking Suite Tractor Beam Beam Cannon Light Assault Rifle Datajack Peak State ------------ > --- POWER ------------ Reinforced Ion Engine > --- PROPULSION ------- Cesium-ion Thruster Cesium-ion Thruster Cesium-ion Thruster Cesium-ion Thruster > --- UTILITY ---------- Small Storage Unit Hacking Suite > --- WEAPON ----------- Beam Cannon Rocket Launcher > --- INVENTORY -------- Light Ion Engine Medium Storage Unit Hacking Suite Hacking Suite Tractor Beam Light Assault Rifle [Rating: 22] Favorites ----------- Power Light Nuclear Core Engine Light Ion Engine Power Core Light Nuclear Core Propulsion Cesium-ion Thruster Leg Aluminum Leg Flight Unit Cesium-ion Thruster Utility Small Storage Unit Device Sensor Array Storage Small Storage Unit Hackware Hacking Suite Weapon Light Assault Rifle Energy Cannon Beam Cannon Ballistic Gun Light Assault Rifle Launcher Rocket Launcher Build | -11 -10 -10 -9 -8 ------- Run | Yrd Mat Min Mat Mat Slots Evolved 4 | . . . 2 2 Power . | . . . . . Propulsion 2 | . . . 2 . Utility 2 | . . . . 2 Weapon . | . . . . . Parts Attached 34 | 6 6 5 9 8 Power 6 | 1 1 1 1 2 Engine 5 | 1 . 1 1 2 Core 1 | . 1 . . . Reactor . | . . . . . Propulsion 10 | 2 1 2 4 1 Treads . | . . . . . Leg 5 | 2 1 2 . . Wheel . | . . . . . Hover . | . . . . . Flight 5 | . . . 4 1 Utility 11 | 1 3 1 1 5 Device 5 | . 1 1 . 3 Storage 4 | 1 2 . . 1 Processor . | . . . . . Hackware 2 | . . . 1 1 Protection . | . . . . . Artifact . | . . . . . Weapon 7 | 2 1 1 3 . Energy Gun . | . . . . . Energy Cannon 1 | . . 1 . . Ballistic Gun 3 | 2 . . 1 . Ballistic Cannon . | . . . . . Launcher 3 | . 1 . 2 . Special Weapon . | . . . . . Impact Weapon . | . . . . . Slashing Weapon . | . . . . . Piercing Weapon . | . . . . . Special Melee Weapon . | . . . . . Unidentified Prototypes . | . . . . . Parts Lost 18 | . 1 6 2 9 Power 4 | . 1 1 . 2 Propulsion 7 | . . 2 2 3 Utility 5 | . . 1 . 4 Weapon 2 | . . 2 . . Highest Loss Streak 8 | . 1 6 2 8 To Critical Strikes 1 | . . 1 . . Average Slot Usage (%) 79 | . 89 88 64 74 Engine 5 | . 4 4 3 8 Core 4 | . 9 9 . . Leg 14 | . 28 26 1 . Flight 11 | . . . 26 22 Device 5 | . 3 9 . 8 Storage 12 | . 14 14 11 9 Hackware 6 | . . . 10 17 Energy Cannon 2 | . . 4 3 . Ballistic Gun 12 | . 23 8 7 8 Launcher 3 | . 4 9 . . Naked Turns . | . . . . . Heaviest Build 20 | 11 18 20 18 14 Greatest Support 20 | 20 20 20 20 15 Greatest Overweight (x) 5 | 3 . 1 5 3 Average Overweight (x) . | . . . . . Largest Inventory Capacity 10 | 8 10 8 8 10 Average Capacity 8 | 7 8 8 8 8 Most Carried 8 | 2 8 8 8 8 Average Carried 6 | . 5 6 7 6 Final Capacity 10 | 8 8 8 8 10 Final Carried 8 | 2 8 5 8 5 Class Distribution -------------------- 60% | Mutant 24% | Sprinter 15% | Hacker-Sprinter Dominant Class ---------------- Mutant | -10/Materials Mutant | -10/Mines Sprinter | -9/Materials Hacker-Sprinter | -8/Materials Resources | -11 -10 -10 -9 -8 ----------- Run | Yrd Mat Min Mat Mat Matter Collected 821 | 163 314 74 168 102 Remotely 38 | . 38 . . . Salvage Created 987 | . 527 77 383 . Parts 74 | . 38 3 33 . Haulers Intercepted 1 | . 1 . . . Recyclers Shooed 3 | . 1 2 . . Parts Field Recycled . | . . . . . Retrieved Matter . | . . . . . Parts Self-Destructed . | . . . . . Prevented . | . . . . . Kills | -11 -10 -10 -9 -8 ------- Run | Yrd Mat Min Mat Mat Combat Hostiles Destroyed 27 | . 12 4 11 . Guns 11 | . 9 1 1 . Cannons 8 | . . 2 6 . AOE 8 | . 3 1 4 . Classes Destroyed 12 | . 7 2 3 . Worker 2 | . . . 2 . Builder 1 | . 1 . . . Tunneler 1 | . . 1 . . Hauler 1 | . 1 . . . Recycler 2 | . 2 . . . Operator 2 | . 1 . 1 . Watcher 3 | . 2 . 1 . Swarmer 10 | . 6 . 4 . Grunt 12 | . 6 2 4 . Duelist 1 | . . . 1 . Sentry 2 | . . . 2 . Assembled 2 | . . 2 . . Best Kill Streak 10 | . 7 2 10 . Combat Bots Only 7 | . 7 2 7 . Max Kills in Single Turn 3 | . 3 1 3 . Gunslinging . | . . . . . Exploded 3 | . 2 1 3 . Melee . | . . . . . Uniques/NPCs Destroyed . | . . . . . Combat | -11 -10 -10 -9 -8 -------- Run | Yrd Mat Min Mat Mat Hostile Shots Fired 168 | . 43 36 30 59 Missed 55 | . 9 10 14 22 Damage Taken 2234 | . 396 671 201 966 Core 794 | . 82 101 48 563 Absorbed by Shields . | . . . . . Core Remaining (%) 71 | 100 . 26 88 . Volleys Fired 113 | . 31 14 61 7 Largest 2 | . 2 2 2 1 Hottest 93 | . 53 60 93 20 Shots Fired 150 | . 62 17 64 7 Gun 102 | . 58 3 34 7 Cannon 37 | . . 10 27 . Launcher 11 | . 4 4 3 . Special . | . . . . . Kinetic 102 | . 58 3 34 7 Thermal 37 | . . 10 27 . Explosive 11 | . 4 4 3 . Electromagnetic . | . . . . . Robot Hit Streak 13 | . 10 6 13 2 Robot Miss Streak 3 | . 2 3 3 3 Penetration Max . | . . . . . Secondary Targets 2 | . 2 . . . Max Gunslinging Chain 1 | . 1 . . . Shots Hit Robots 93 | . 40 11 39 3 Core Hits 61 | . 27 9 25 . Critical Kills . | . . . . . Critical Parts Destroyed . | . . . . . Critical Strikes . | . . . . . Melee Attacks . | . . . . . Impact . | . . . . . Slashing . | . . . . . Piercing . | . . . . . Sneak Attacks . | . . . . . Combat Hostiles . | . . . . . Follow-up Attacks . | . . . . . Damage Inflicted 1943 | . 797 334 776 36 Guns 657 | . 434 40 147 36 Cannons 471 | . . 122 349 . Explosions 803 | . 357 166 280 . Melee . | . . . . . Ramming 12 | . 6 6 . . Kinetic 657 | . 434 40 147 36 Thermal 471 | . . 122 349 . Explosive 803 | . 357 166 280 . Electromagnetic . | . . . . . Impact . | . . . . . Slashing . | . . . . . Piercing . | . . . . . Highest Corruption . | . . . . . Average Corruption . | . . . . . Corruption Purged . | . . . . . Corruption Blocked . | . . . . . Overload Shots . | . . . . . Overflow Damage 33 | . 32 . 1 . Projectiles . | . . . . . Explosions 33 | . 32 . 1 . Melee . | . . . . . Knockbacks . | . . . . . Impact . | . . . . . Kinetic . | . . . . . Secondary . | . . . . . Self-Inflicted Damage 80 | . 41 39 . . Shots 2 | . 1 1 . . Rammed . | . . . . . Targets Rammed 4 | . 2 2 . . Kicked 4 | . 2 2 . . Crushed . | . . . . . Highest Temperature 326 | . 18 280 326 2 Average Temperature 104 | . 6 118 121 2 Received Heat Transfer 297 | . 135 48 60 54 Effects 3 | . . . 3 . Shutdowns 1 | . . . 1 . Matter Decay 1 | . . . 1 . Short Circuit 1 | . . . 1 . Siege Activations . | . . . . . Robots Corrupted . | . . . . . Combat Hostiles . | . . . . . Parts Fried . | . . . . . Impact Corruptions . | . . . . . Robots Melted . | . . . . . Combat Hostiles . | . . . . . Parts Melted 1 | . . . 1 . Heat Transferred 999 | . . 259 740 . Parts Sabotaged . | . . . . . Parts Stolen . | . . . . . Parts Stripped . | . . . . . Power Chain Reactions . | . . . . . Alert | -11 -10 -10 -9 -8 ------- Run | Yrd Mat Min Mat Mat Peak Influence 361 | . 361 152 312 76 Initial 76 | . . 76 . 16 Average 102 | . 164 93 116 24 Maximum Alert Level 1 | . 1 . 1 . Low Security (%) 80 | 100 57 100 70 100 Level 1 19 | . 42 . 29 . Level 2 . | . . . . . Level 3 . | . . . . . Level 4 . | . . . . . Level 5 . | . . . . . High Security . | . . . . . Max Security . | . . . . . Squads Dispatched 5 | . 3 . . 2 Investigation 4 | . 2 . . 2 Extermination . | . . . . . Reinforcement 1 | . 1 . . . Assault . | . . . . . Garrison . | . . . . . Intercept . | . . . . . Searches Triggered . | . . . . . Construction Impeded . | . . . . . Haulers Reinforced . | . . . . . Active Scanning Responses . | . . . . . Cargo Convoy Interrupts . | . . . . . Stealth | -11 -10 -10 -9 -8 --------- Run | Yrd Mat Min Mat Mat Distress Signals 7 | . 1 . 4 2 Communications Jammed . | . . . . . Distress Signals . | . . . . . Times Spotted 82 | . 18 25 31 8 Peak Tracking Total 18 | . 8 18 9 5 Tactical Retreats 6 | . . 3 2 1 Traps | -11 -10 -10 -9 -8 ------- Run | Yrd Mat Min Mat Mat Traps Triggered 1 | . 1 . . . Indirectly . | . . . . . Trap Hack Attempts . | . . . . . Triggered . | . . . . . Disarmed . | . . . . . Reprogrammed . | . . . . . Reused . | . . . . . Traps Extracted . | . . . . . Installed . | . . . . . Triggered . | . . . . . Machines | -11 -10 -10 -9 -8 ---------- Run | Yrd Mat Min Mat Mat Machines Disabled . | . . . . . Max in Single Turn . | . . . . . Machines Repaired . | . . . . . Machines Dismantled . | . . . . . Machines Sabotaged . | . . . . . Overloaded Fab Kills . | . . . . . Hacking | -11 -10 -10 -9 -8 --------- Run | Yrd Mat Min Mat Mat Machines Accessed 7 | . 1 . 3 3 Terminals 7 | . 1 . 3 3 Fabricators . | . . . . . Repair Stations . | . . . . . Recycling Units . | . . . . . Scanalyzers . | . . . . . Garrison Access . | . . . . . Total Hacks 14 | . 2 . 5 7 Successful 7 | . 1 . 2 4 Failed 7 | . 1 . 3 3 Catastrophic 4 | . 1 . 3 . Database Lockouts . | . . . . . Manual 8 | . . . 4 4 Terminals 14 | . 2 . 5 7 Fabricators . | . . . . . Repair Stations . | . . . . . Recycling Units . | . . . . . Scanalyzers . | . . . . . Garrison Access . | . . . . . Terminal Hacks 7 | . 1 . 2 4 Emergency Access Points 1 | . . . 1 . Alert Level 1 | . . . . 1 Unreport Threat 3 | . . . 1 2 Recall Investigation 2 | . 1 . . 1 Fabricator Hacks . | . . . . . Repair Station Hacks . | . . . . . Recycling Unit Hacks . | . . . . . Scanalyzer . | . . . . . Garrison Access Hacks . | . . . . . Unauthorized Hacks . | . . . . . Terminals . | . . . . . Fabricators . | . . . . . Repair Stations . | . . . . . Recycling Units . | . . . . . Scanalyzers . | . . . . . Garrison Access . | . . . . . Data Cores Recovered . | . . . . . Used . | . . . . . Hacking Detections 6 | . 1 . 2 3 Full Trace Events 4 | . 1 . 1 2 Feedback Events . | . . . . . Feedback Blocked . | . . . . . Robot Schematics Acquired . | . . . . . Robots Built . | . . . . . Authchips . | . . . . . Time . | . . . . . Total Robot Build Rating . | . . . . . Part Schematics Acquired . | . . . . . Parts Built . | . . . . . Authchips . | . . . . . Time . | . . . . . Total Part Build Rating . | . . . . . Parts Repaired . | . . . . . Time . | . . . . . Parts Recycled . | . . . . . Recycled Matter . | . . . . . Retrieved Matter . | . . . . . Retrieved Components . | . . . . . Parts Scanalyzed . | . . . . . Part Schematics Acquired . | . . . . . Parts Damaged . | . . . . . Bothacking | -11 -10 -10 -9 -8 ------------ Run | Yrd Mat Min Mat Mat Used RIF Installer . | . . . . . Robots Hacked . | . . . . . Non-combat . | . . . . . Combat . | . . . . . Robot Hacks Applied . | . . . . . Relay Couplers Released . | . . . . . Fabnet Peak Effective % . | . . . . . Robots Rewired . | . . . . . Allies Hacked . | . . . . . Hacks Repelled . | . . . . . Allies | -11 -10 -10 -9 -8 -------- Run | Yrd Mat Min Mat Mat Total Allies 6 | . . 6 . . Largest Group 6 | . . 6 . . Highest-Rated Group 114 | . . 114 . . Highest-Rated Ally 31 | . . 31 . . Total Orders . | . . . . . Ally Attacks 24 | . . 24 . . Total Damage 247 | . . 247 . . Kills 3 | . . 3 . . Allies Corrupted . | . . . . . Allies Melted . | . . . . . Intel | -11 -10 -10 -9 -8 ------- Run | Yrd Mat Min Mat Mat Robot Analysis Total . | . . . . . Derelict Logs Recovered 1 | . . 1 . . Drone Launches . | . . . . . Drone Recoveries . | . . . . . Exploration | -11 -10 -10 -9 -8 ------------- Run | Yrd Mat Min Mat Mat Turns Passed 2127 | 74 535 542 605 371 Spaces Moved 1879 | 51 348 402 383 695 Core 38 | 30 . . 1 7 Treads . | . . . . . Legs 794 | 21 348 402 23 . Wheels . | . . . . . Hover . | . . . . . Flight 1047 | . . . 359 688 Fastest Speed 26 | 50 120 120 26 29 Average Speed 71 | 125 120 121 37 32 Slowest Speed 300 | 200 120 190 300 200 Overloaded Moves . | . . . . . Propulsion Burnouts . | . . . . . Robots Hopped 10 | . . . 6 4 Cave-ins Triggered . | . . . . . Exploration Rate (%) 38 | 3 48 65 33 45 Regions Visited 4 Branch Regions 1 Pre-discovered Areas 1 | . . 1 . . Known Exits Taken . | . . . . . Unknown Exits Taken 4 | 1 1 1 1 . Scrap Searched 1 | . . 1 . . Spaces Dug . | . . . . . Terrain Destroyed 91 | . 28 39 24 . Melee . | . . . . . Projectile . | . . . . . AOE 91 | . 28 39 24 . Terrain Rammed . | . . . . . Walls Destroyed . | . . . . . Machines Disabled . | . . . . . Actions | -11 -10 -10 -9 -8 --------- Run | Yrd Mat Min Mat Mat Total 2512 | 58 408 437 782 827 Wait 464 | . 8 12 326 118 Move 1856 | 50 347 401 371 687 Hop 9 | . . . 5 4 Pick Up 18 | 2 9 2 3 2 Fast Attach 18 | 6 4 . 6 2 Attach 14 | . 1 5 3 5 Detach 4 | . . . 3 1 Swap 2 | . 1 . . 1 Drop 10 | . 5 1 4 . Fire 113 | . 31 14 61 7 Melee . | . . . . . Ram . | . . . . . Kick 4 | . 2 2 . . Crush . | . . . . . Escape Stasis . | . . . . . Rewire . | . . . . . Trap . | . . . . . Miscellaneous . | . . . . . Route ------- -11/Scrapyard -10/Materials -10/Mines -9/Materials -8/Materials (discovered 1 exit: [*Fac]) History --------- Turn | Location | Event 33 | -11/Scrapyard | Discovered new exit (range 16) 75 | -11/Scrapyard | Entered Materials 194 | -10/Materials | Discovered new exit (range 15) 241 | -10/Materials | Destroyed 7 combat bots 307 | -10/Materials | Build established: Mutant 610 | -10/Materials | Entered Mines 612 | -10/Mines | Met a Derelict bent on vengeance 650 | -10/Mines | Assisted by bots powering up and referring to "LRC-V3" 789 | -10/Mines | Received a Mining Laser from a helpful Derelict 946 | -10/Mines | Assembled infested the area 964 | -10/Mines | Core integrity fell below 50% 1004 | -10/Mines | Lost 6 allies 1025 | -10/Mines | Lost 6 parts (1p2n1u2w) 1105 | -10/Mines | Discovered new exit (range 10) 1152 | -10/Mines | Entered Materials 1152 | -9/Materials | Evolved 2 slots: Propulsion x2 1268 | -9/Materials | Destroyed 7 combat bots 1653 | -9/Materials | Build established: Sprinter 1749 | -9/Materials | Discovered new exit (range 10) 1757 | -9/Materials | Entered another Materials area 1757 | -8/Materials | Evolved 2 slots: Utility x2 2049 | -8/Materials | Build established: Hacker-Sprinter 2108 | -8/Materials | Discovered new exit (range 6) 2117 | -8/Materials | Core integrity fell below 50% 2124 | -8/Materials | Core integrity fell below 20% 2128 | -8/Materials | Destroyed by H-55 Commando with Gauss Rifle Last Messages --------------- Knocked back. Slug penetrates H-61 Shepherd. Slug penetrates Wall. EXIT=FOUND Sml. Storage Unit destroyed. Hacking Suite destroyed. Critical hit (Blast). Knocked back. Slug penetrates Wall. Acquired Med. Storage Unit. Penetrated by Slug. Cesium-ion Thruster destroyed. Penetrated by Slug. Knocked back. Slug penetrates Wall. Knocked back. Acquired 5 matter. Penetrated by Slug. Knocked back. Penetrated by Slug. Map ----- +----------------------------------------------------+ | #??????????????????# """"" ## ## T" #??????????? | | #??????????????????# """"" ## ## "" #??????????? | | #??????????????????# """"" ## ## #??????????? | | #??????????????????# """"" ## #######??????????? | | #??????????######### ## #????????????????? | | #??????????#! ![ ######+##### #????????????????? | | #??????????# [ #???# #??# #????????????????? | | #??????????# #???# #??# #????????????????? | | #??????????# #???# #??#+#????????????????? | | #???????????? #???# ##????????????????????? | | #?????????????? #???# #????????????????????? | | #??????##########+##### ####??????????????????? | | #??????# +??????????????????? | | #??????# ########### ## #??????????????????? | | #??????# #????????# ## #??????????????????? | | #??????# #????????##### #??????????????????? | | #??????# #????????????# #??????????????????? | | #??????# #????????????# #??????????????????? | | #??????# #????????????# ##/#??????????????????? | | #??????# #????????????# #? ?????????????????? | | #??????# #?#######???## ##? ????????????????? | | #??????# ### ##### #? ???????????????? | | +#####??# h #?? [ ??????????????? | | #??##### Y H +??? ??????????????? | | #??????#=% Y %#???? ???????????????? | | """ #??????#% %### # @ #????????????????????? | | """ #?????####+##### ## ##????????????????????? | | """ #?????# != #### %%#?????????????????????? | | #?????# != #??# #?????????????????????? | | """ #?????# * = #??# < #?????????????????????? | | """ #?????# #??# #?????????????????????? | | """ #?????# #??#####?????????????????????? | | #?????# "" "" #????????????????????????????? | | #?????# ""S"" #????????????????????????????? | | !#?????# """" #????????????????????????????? | | ######?????# #????????????????????????????? | | ???????????#??##### #????????????????????????????? | | ???????????????????#?????????????????????????????? | | | | | | | | | | | | | | | | | | | | | | | | | +----------------------------------------------------+ Best States ------------- Heat Dissipation 31 Energy Generation 14 Energy Capacity 265 Matter Stores 300 Matter Capacity 300 Sight Range 16 Robot Scan Range 15 Terrain Scan Density 10 Evasion (%) 64 Offensive Hacking 20 Item Schematics ----------------- None Robot Schematics ------------------ None Fabricated ------------ Nothing Alien Tech Used ----------------- None Achievements -------------- None Challenges ------------ None Game ------ Seed MicroControlScanner Manual? 0 Play Time 00:20:58 Cumulative 18.6 hours Start 2024.04.15 @ 09:28:37 End 2024.04.15 @ 09:49:04 Sessions 1 Manual Loads 0 Difficulty Rogue Special Mode None Game No. 64 Rogue 64 Adventurer 0 Explorer 0 Win Type - Total 0 Types 0/0/0/0/0/0/0/0/0 Lore% 14 Gallery% 23 Achievement% 20 Wizard Run 0 Options --------- Layout 1 ASCII 1 Keyboard 0 Movement Arrows Keybinds 0 Fullscreen 1 Font 18/SmallcapsGlow Map View 50x40 Zoom Use 0% Tactical HUD 0 Map Filters NONE Filters NONE Steam 1 RUN: a9b41793-7a4b-4682-8ca7-3b36665d3119